bitfinex/quotes_SOLUSD_20251224
["timestamp","ask_amount","ask_price","bid_price","bid_amount"]
[1766615893730,10.43767296,123.3,123.27,0.72]
[1766615894916,10.54979715,123.31,123.23,14.82]
[1766615894917,8.10908608,123.32,123.28,1.78986627]
[1766615895120,19.19675904,123.32,123.29,0.72]
[1766615895300,20.98662531,123.32,123.29,0.72]
[1766615896338,1.78986627,123.32,123.29,0.72]
[1766615896537,2.43986627,123.32,123.29,0.72]
[1766615897220,10.54889969,123.32,123.29,0.72]
[1766615897421,8.75903342,123.32,123.29,0.72]
[1766615897623,10.54889969,123.32,123.29,0.72]
[1766615898441,1.78986627,123.31,123.27,14.82]
[1766615898645,0.65,123.3,123.27,15.54]
[1766615899257,2.43986627,123.31,123.28,0.72]
[1766615900350,8.11030008,123.3,123.28,0.72]
[1766615904057,8.76030008,123.3,123.27,15.54]
[1766615904366,10.55016635,123.3,123.27,0.72]
[1766615904739,9.90016635,123.3,123.25,0.72]
[1766615904938,20.98783931,123.3,123.25,0.72]
[1766615905664,20.98783931,123.3,123.25,1.78986627]
[1766615905856,20.98783931,123.3,123.26,0.72]
[1766615909883,18.54797304,123.3,123.26,0.72]
[1766615910048,10.43767296,123.3,123.27,0.72]
[1766615911078,11.08767296,123.3,123.27,0.72]
[1766615912468,8.75970758,123.31,123.27,0.72]
[1766615912770,8.75970758,123.31,123.28,0.72]
[1766615914074,8.10970758,123.31,123.28,0.72]
[1766615914290,19.19684322,123.32,123.28,0.72]
[1766615914484,140.88190536,123.33,123.28,14.82]
[1766615914485,0.1,123.33,123.28,14.82]
[1766615914780,0.1,123.33,123.31,0.72]
[1766615914977,0.1,123.33,123.28,22.93154348]
[1766615914978,8.87712174,123.35,123.29,0.72]
[1766615915183,0.77,123.35,123.31,0.72]
[1766615915488,0.1,123.35,123.31,0.72]
[1766615916398,0.77,123.35,123.31,0.72]
[1766615918209,0.1,123.35,123.31,8.10943733]
[1766615918387,0.1,123.37,123.33,0.66]
[1766615918575,0.1,123.37,123.35,0.66]
[1766615920077,2.58986627,123.37,123.33,0.66]
[1766615920279,0.8,123.37,123.33,0.66]
[1766615920481,2.58986627,123.37,123.33,0.66]
[1766615920894,0.8,123.37,123.33,0.66]
[1766615921097,2.58986627,123.37,123.33,0.66]
[1766615921287,0.8,123.37,123.33,0.66]
[1766615921480,2.58986627,123.37,123.33,0.66]
[1766615922115,0.8,123.37,123.33,0.66]
[1766615922285,2.58986627,123.37,123.33,0.66]
[1766615923705,1.78986627,123.36,123.33,0.66]
[1766615924898,1.28986627,123.36,123.33,0.66]
[1766615925280,1.98986627,123.36,123.33,0.66]
[1766615926019,0.1,123.37,123.33,0.66]
[1766615926612,1.88986627,123.37,123.34,0.66]
[1766615928120,0.1,123.37,123.34,0.66]
[1766615928317,1.88986627,123.37,123.34,0.66]
[1766615929222,0.1,123.37,123.34,0.66]
[1766615929411,0.1,123.37,123.33,8.7681673]
[1766615929613,1.88986627,123.37,123.34,0.66]
[1766615931709,2.58986627,123.37,123.34,0.66]
[1766615932711,0.8,123.37,123.34,0.66]
[1766615933231,2.58986627,123.37,123.34,0.66]
[1766615934431,2.48986627,123.36,123.34,0.66]
[1766615935613,1.78986627,123.36,123.34,0.66]
[1766615935812,8.90569876,123.37,123.34,0.66]
[1766615936334,1.78986627,123.36,123.34,0.66]
[1766615939312,10.69556503,123.37,123.34,0.66]
[1766615940735,8.90569876,123.37,123.34,0.66]
[1766615940933,0.8,123.37,123.34,0.66]
[1766615941135,0.1,123.37,123.34,0.66]
[1766615942013,1.88986627,123.37,123.34,0.66]
[1766615942418,10.69572029,123.37,123.34,0.66]
[1766615943851,8.90585402,123.37,123.34,0.66]
[1766615944030,10.69572029,123.37,123.34,0.66]
[1766615944231,8.90585402,123.37,123.34,0.66]
[1766615944450,10.69572029,123.37,123.34,0.66]
[1766615944818,0.1,123.37,123.34,0.66]
[1766615945938,0.8,123.37,123.34,0.66]
[1766615948856,0.6,123.32,123.21,0.2]
[1766615949049,1.78986627,123.28,123.22,0.65]
[1766615949249,2.38986627,123.28,123.24,0.65]
[1766615949841,2.38986627,123.28,123.24,15.45]
[1766615949842,1.78986627,123.26,123.24,15.45]
[1766615951957,1.78986627,123.26,123.22,0.65]
[1766615951958,1.78986627,123.25,123.22,0.65]
[1766615952468,1.78986627,123.25,123.21,0.2]
[1766615952469,1.78986627,123.23,123.21,0.2]
[1766615952632,1.78986627,123.24,123.21,0.2]
[1766615952836,8.11629279,123.26,123.21,0.2]
[1766615953030,12.89753923,123.27,123.21,0.2]
[1766615953433,2.45986627,123.27,123.21,10.10605508]
[1766615953754,2.45986627,123.27,123.21,30.39661591]
[1766615953928,3.46858827,123.27,123.21,31.40533791]
[1766615954548,2.79858827,123.26,123.22,0.65]
[1766615954761,2.79858827,123.26,123.23,0.65]
[1766615955346,2.79858827,123.25,123.23,0.65]
[1766615956971,0.67,123.26,123.23,0.65]
[1766615957139,3.46858827,123.26,123.23,0.65]
[1766615960968,11.58165867,123.26,123.23,0.65]
[1766615961967,3.46858827,123.25,123.22,0.65]
[1766615962644,2.79858827,123.24,123.22,0.65]
[1766615962845,3.46858827,123.24,123.21,0.85]
[1766615964373,2.79858827,123.25,123.22,0.65]
[1766615964571,2.79858827,123.24,123.22,0.65]
[1766615964869,0.67,123.25,123.22,0.65]
[1766615965046,2.79858827,123.24,123.22,0.65]
[1766615966170,2.79858827,123.25,123.22,0.65]
[1766615966749,0.67,123.26,123.22,0.65]
[1766615966954,2.79858827,123.25,123.22,0.65]
[1766615967880,3.46858827,123.25,123.22,0.65]
[1766615970475,0.67,123.25,123.22,0.65]
[1766615970677,3.46858827,123.25,123.22,0.65]
[1766615972183,0.67,123.25,123.22,0.65]
[1766615972378,0.67,123.25,123.22,8.76526304]
[1766615972759,0.67,123.27,123.23,0.65]
[1766615973063,2.79858827,123.25,123.23,0.65]
[1766615975665,2.79858827,123.26,123.23,0.65]
[1766615976386,3.46858827,123.27,123.23,0.65]
[1766615978582,2.79858827,123.26,123.23,0.65]
[1766615980797,10.91166815,123.26,123.23,0.65]
[1766615980999,3.49858827,123.25,123.22,0.67]
[1766615982397,2.79858827,123.25,123.22,0.67]
[1766615982577,3.49858827,123.25,123.22,0.67]
[1766615985310,0.7,123.25,123.22,0.67]
[1766615985483,3.49858827,123.25,123.22,0.67]
[1766615985924,2.79858827,123.25,123.21,8.31589506]
[1766615986131,0.7,123.24,123.21,0.87]
[1766615986425,0.7,123.23,123.21,0.2]
[1766615988722,0.7,123.23,123.21,0.87]
[1766615989503,11.61291679,123.24,123.21,0.87]
[1766615990034,3.49858827,123.22,123.18,0.67]
[1766615990202,8.11432852,123.24,123.18,0.67]
[1766615990203,3.49858827,123.21,123.18,0.67]
[1766615992020,2.79858827,123.2,123.18,0.67]
[1766615993002,0.7,123.21,123.18,0.67]
[1766615993205,2.79858827,123.2,123.18,0.67]
[1766615993405,0.7,123.21,123.18,0.67]
[1766615993626,3.49858827,123.21,123.18,0.67]
[1766615997739,0.7,123.21,123.18,0.67]
[1766615997913,3.49858827,123.21,123.18,0.67]
[1766616000307,3.49858827,123.21,123.17,22.93884371]
[1766616000308,3.49858827,123.2,123.17,15.49]
[1766616001059,11.13767296,123.22,123.18,0.67]
[1766616001260,0.7,123.22,123.19,0.67]
[1766616001440,3.49858827,123.22,123.19,0.67]
[1766616002170,3.49858827,123.22,123.19,8.78725078]
[1766616002652,0.7,123.22,123.19,8.78725078]
[1766616002958,0.7,123.26,123.21,0.67]
[1766616003147,2.79858827,123.24,123.21,0.67]
[1766616003336,3.49858827,123.24,123.21,0.67]
[1766616005235,11.13767296,123.26,123.22,0.67]
[1766616005438,13.93626123,123.26,123.22,0.67]
[1766616005639,3.49858827,123.28,123.23,15.49]
[1766616005864,3.49858827,123.28,123.24,0.67]
[1766616006035,3.49858827,123.28,123.24,8.11404004]
[1766616006348,3.49858827,123.28,123.25,0.67]
[1766616006549,3.49858827,123.29,123.25,0.67]
[1766616006750,2.79858827,123.3,123.27,0.67]
[1766616007363,0.7,123.31,123.27,0.67]
[1766616007364,3.49858827,123.31,123.27,0.67]
[1766616008254,0.7,123.31,123.28,0.7]
[1766616008454,22.05561102,123.32,123.28,0.7]
[1766616008763,3.50858827,123.33,123.28,0.7]
[1766616008951,3.50858827,123.33,123.3,0.7]
[1766616009344,0.71,123.33,123.3,0.7]
[1766616009542,3.50858827,123.33,123.3,0.7]
[1766616009737,2.89858827,123.34,123.3,0.7]
[1766616009949,3.60858827,123.34,123.31,0.7]
[1766616010765,0.81,123.34,123.31,0.7]
[1766616010958,2.79858827,123.33,123.31,0.7]
[1766616011468,0.81,123.34,123.31,0.7]
[1766616011469,3.60858827,123.34,123.31,0.7]
[1766616011763,14.04626123,123.34,123.31,0.7]
[1766616011966,3.60858827,123.34,123.31,0.7]
[1766616012348,2.89858827,123.34,123.31,0.7]
[1766616013973,0.1,123.34,123.31,8.80919497]
[1766616014274,0.1,123.34,123.32,0.7]
[1766616014645,0.1,123.37,123.34,0.7]
[1766616014851,2.89858827,123.37,123.34,0.7]
[1766616015261,3.50858827,123.35,123.32,0.7]
[1766616015461,2.79858827,123.34,123.32,0.7]
[1766616015979,8.81724378,123.35,123.31,0.7]
[1766616016474,1.78913448,123.33,123.31,0.7]
[1766616016857,0.71,123.34,123.3,14.82]
[1766616016858,1.78913448,123.32,123.3,14.82]
[1766616017379,1.78913448,123.31,123.27,8.11210493]
[1766616017679,1.78913448,123.31,123.27,22.93210493]
[1766616018152,1.78913448,123.3,123.26,58.98532305]
[1766616018778,1.78913448,123.3,123.27,0.7]
[1766616020382,2.49913448,123.31,123.28,0.7]
[1766616021297,0.71,123.36,123.28,0.43]
[1766616021484,2.49913448,123.34,123.3,0.43]
[1766616022193,0.71,123.33,123.3,0.43]
[1766616022398,2.49913448,123.33,123.3,0.43]
[1766616024603,1.78913448,123.34,123.3,8.10986455]
[1766616024803,1.78913448,123.34,123.31,0.43]
[1766616025593,1.78913448,123.36,123.31,0.43]
[1766616025897,2.49913448,123.36,123.32,8.53898475]
[1766616026881,2.59913448,123.37,123.33,0.43]
[1766616028404,2.59913448,123.37,123.33,8.53815511]
[1766616029103,1.78913448,123.35,123.31,0.43]
[1766616029306,2.49913448,123.34,123.29,8.11077899]
[1766616029484,1.78913448,123.33,123.3,14.82]
[1766616029684,2.49913448,123.33,123.3,14.82]
[1766616033504,1.78913448,123.33,123.31,0.43]
[1766616033809,1.78913448,123.33,123.3,15.25]
[1766616034008,2.49913448,123.31,123.26,8.54256303]
[1766616034190,1.78913448,123.3,123.26,8.54256303]
[1766616036089,0.71,123.3,123.26,8.54256303]
[1766616036297,1.78913448,123.29,123.26,8.54256303]
[1766616038709,1.78913448,123.29,123.26,23.36256303]
[1766616040013,1.78913448,123.28,123.23,0.8114907]
[1766616040311,1.78913448,123.26,123.24,0.43]
[1766616041108,1.78913448,123.26,123.23,22.93450768]
[1766616041306,1.78913448,123.26,123.23,23.36450768]
[1766616044222,2.44913448,123.27,123.23,23.36450768]
[1766616044797,0.66,123.26,123.23,15.25]
[1766616046429,0.66,123.26,123.22,8.11524969]
[1766616046430,0.66,123.25,123.22,8.11524969]
[1766616047109,0.66,123.25,123.22,8.54524969]
[1766616053398,2.44913448,123.25,123.22,8.54524969]
[1766616053907,0.66,123.25,123.22,8.54524969]
[1766616054528,2.44913448,123.25,123.22,8.54524969]
[1766616055823,8.11195506,123.28,123.22,8.54524969]
[1766616056019,0.66,123.27,123.22,8.54524969]
[1766616056332,2.44913448,123.26,123.22,8.54524969]
[1766616056928,1.78913448,123.26,123.22,8.54524969]
[1766616057237,0.66,123.25,123.22,8.54524969]
[1766616063422,2.44913448,123.25,123.22,8.54524969]
[1766616063731,0.66,123.25,123.22,8.54524969]
[1766616070130,0.72,123.32,123.25,0.43]
[1766616070435,20.27086252,123.33,123.26,0.43]
[1766616070436,0.72,123.29,123.26,0.43]
[1766616071028,0.72,123.29,123.26,8.54246811]
[1766616073438,0.72,123.29,123.26,10.33160259]
[1766616074547,0.72,123.3,123.27,23.36186923]
[1766616078026,0.72,123.35,123.29,0.43]
[1766616078348,0.72,123.33,123.3,8.11030008]
[1766616079340,0.72,123.33,123.3,8.54030008]
[1766616079927,0.72,123.34,123.3,8.54030008]
[1766616080462,3.51607869,123.33,123.29,8.11070231]
[1766616080762,0.72,123.32,123.29,23.36070231]
[1766616082149,0.72,123.32,123.3,8.11021535]
[1766616088433,0.72,123.32,123.29,23.36066752]
[1766616088936,0.72,123.32,123.29,22.93066752]
[1766616089952,0.72,123.32,123.29,14.82]
[1766616090154,0.72,123.31,123.28,0.43]
[1766616095166,0.72,123.31,123.27,22.9319014]
[1766616095361,2.79607869,123.31,123.26,73.40884034]
[1766616095567,0.72,123.3,123.26,23.36276165]
[1766616097084,0.72,123.29,123.26,14.82]
[1766616097244,10.90639472,123.3,123.23,8.54455229]
[1766616097245,0.72,123.27,123.23,8.54455229]
[1766616098945,0.65,123.26,123.23,8.54455229]
[1766616101558,0.65,123.26,123.23,8.11455229]
[1766616101746,0.65,123.25,123.22,23.3654102]
[1766616103268,0.65,123.25,123.22,8.1154102]
[1766616104869,0.65,123.25,123.22,8.5454102]
[1766616110174,0.65,123.25,123.22,8.1154102]
[1766616110570,0.65,123.24,123.2,15.25]
[1766616110777,3.44607869,123.23,123.19,71.04720841]
[1766616111077,3.44607869,123.23,123.2,8.11676967]
[1766616112285,0.65,123.23,123.2,8.11676967]
[1766616113157,2.79607869,123.24,123.2,0.43]
[1766616113479,0.65,123.24,123.2,0.43]
[1766616113858,3.44607869,123.26,123.21,3.22607869]
[1766616114166,0.65,123.25,123.21,3.22607869]
[1766616114362,14.82,123.28,123.22,17.61607869]
[1766616114363,0.65,123.28,123.22,17.61607869]
[1766616114571,0.65,123.27,123.23,0.43]
[1766616115280,0.65,123.28,123.25,0.43]
[1766616115586,2.79607869,123.3,123.26,18.04607869]
[1766616115587,0.65,123.3,123.26,18.04607869]
[1766616116280,0.65,123.3,123.26,17.61607869]
[1766616116451,0.65,123.3,123.27,0.43]
[1766616117179,0.65,123.3,123.28,8.11161583]
[1766616122270,0.65,123.3,123.28,10.90769452]
[1766616123679,0.65,123.3,123.28,8.11161583]
[1766616123985,0.65,123.3,123.28,10.90769452]
[1766616129992,0.65,123.3,123.28,8.11161583]
[1766616130165,0.65,123.3,123.28,10.90769452]
[1766616137992,0.65,123.3,123.28,9.90107443]
[1766616139389,0.72,123.33,123.3,0.43]
[1766616139697,0.72,123.33,123.3,1.7894586]
[1766616140300,0.72,123.33,123.29,2.2194586]
[1766616140803,0.72,123.33,123.29,10.32981304]
[1766616141584,0.72,123.33,123.29,8.54035444]
[1766616142104,0.72,123.33,123.29,10.32981304]
[1766616142697,0.72,123.33,123.29,8.54035444]
[1766616142900,0.72,123.33,123.29,10.32981304]
[1766616143080,0.72,123.33,123.29,8.54035444]
[1766616143459,0.72,123.32,123.27,27.47713156]
[1766616143718,0.72,123.31,123.27,35.58906753]
[1766616144690,0.72,123.31,123.27,33.79960893]
[1766616145290,0.72,123.31,123.27,35.58906753]
[1766616145620,0.72,123.31,123.27,23.36193597]
[1766616146123,0.72,123.31,123.27,25.15139457]
[1766616147620,0.72,123.31,123.27,23.36193597]
[1766616147810,0.72,123.31,123.27,25.15139457]
[1766616148619,0.72,123.31,123.27,15.25]
[1766616148826,9.89919785,123.31,123.26,14.82]
[1766616148996,0.72,123.29,123.24,25.15352532]
[1766616149691,0.72,123.28,123.24,16.6094586]
[1766616150318,0.72,123.28,123.23,2.2194586]
[1766616150504,0.72,123.27,123.23,1.7894586]
[1766616151296,0.72,123.27,123.22,25.15487733]
[1766616155221,0.72,123.26,123.22,16.6094586]
[1766616155425,1.7894586,123.26,123.2,8.11660295]
[1766616155606,0.72,123.24,123.2,1.7894586]
[1766616155808,0.72,123.24,123.19,23.36715508]
[1766616156020,0.72,123.24,123.2,1.7894586]
[1766616156520,0.72,123.24,123.2,2.2194586]
[1766616156926,0.72,123.21,123.17,0.2]
[1766616157425,0.72,123.21,123.17,2.4194586]
[1766616157926,10.43767296,123.24,123.19,1.7894586]
[1766616158107,0.72,123.23,123.2,1.7894586]
[1766616158930,0.72,123.25,123.21,2.2194586]
[1766616159104,0.72,123.25,123.22,2.2194586]
[1766616159730,0.72,123.25,123.22,1.7894586]
[1766616160930,10.43767296,123.28,123.23,1.7894586]
[1766616161130,0.72,123.27,123.24,1.7894586]
[1766616161305,0.72,123.27,123.24,2.2194586]
[1766616161712,0.72,123.27,123.25,1.7894586]
[1766616161932,12.22713156,123.3,123.25,1.7894586]
[1766616161933,0.72,123.29,123.25,1.7894586]
[1766616162121,0.72,123.29,123.24,0.43]
[1766616162327,0.72,123.29,123.25,1.7894586]
[1766616162739,11.15767296,123.31,123.27,0.43]
[1766616162942,0.72,123.31,123.27,2.2194586]
[1766616163244,0.72,123.31,123.27,1.7894586]
[1766616164820,0.72,123.31,123.26,10.33222053]
[1766616168215,0.72,123.31,123.27,1.7894586]
[1766616169844,0.72,123.31,123.26,8.54276193]
[1766616170043,0.72,123.31,123.27,1.7894586]
[1766616172246,0.72,123.31,123.27,2.2194586]
[1766616176548,18.54611297,123.33,123.28,0.43]
[1766616176752,21.05557157,123.33,123.28,0.43]
[1766616177247,0.72,123.32,123.28,2.2194586]
[1766616177763,0.72,123.32,123.29,0.43]
[1766616179157,0.72,123.32,123.28,2.2194586]
[1766616180562,0.72,123.32,123.28,0.43]
[1766616180744,0.72,123.31,123.28,0.43]
[1766616181057,0.72,123.31,123.27,1.7894586]
[1766616181266,0.72,123.31,123.27,2.2194586]
[1766616181629,0.72,123.31,123.27,0.43]
[1766616181827,0.72,123.31,123.27,2.2194586]
[1766616183158,0.72,123.31,123.27,10.33125943]
[1766616184159,0.72,123.31,123.28,0.43]
[1766616184779,0.72,123.31,123.28,1.7894586]
[1766616185066,0.72,123.31,123.27,2.2194586]
[1766616187551,0.72,123.31,123.28,0.43]
[1766616188055,0.72,123.31,123.27,9.90152601]
[1766616188427,0.72,123.31,123.27,10.33152601]
[1766616196038,0.72,123.31,123.27,8.54206741]
[1766616196256,0.72,123.31,123.27,10.33152601]
[1766616197978,0.72,123.31,123.27,3.2261074]
[1766616198267,0.72,123.31,123.27,0.43]
[1766616198471,0.66,123.3,123.26,2.7961074]
[1766616198639,0.66,123.3,123.26,8.11290211]
[1766616199042,0.66,123.3,123.26,10.90900951]
[1766616200246,0.66,123.3,123.25,73.83958916]
[1766616203743,0.66,123.3,123.25,11.33958916]
[1766616206246,0.66,123.3,123.26,2.7961074]
[1766616207853,0.66,123.3,123.25,11.33958916]
[1766616208052,0.66,123.3,123.25,8.54348176]
[1766616208453,0.66,123.3,123.25,11.33958916]
[1766616208650,0.66,123.3,123.27,3.2261074]
[1766616208962,0.66,123.3,123.28,2.7961074]
[1766616211274,18.54633778,123.33,123.28,3.2261074]
[1766616211275,0.66,123.32,123.28,3.2261074]
[1766616211483,0.66,123.32,123.29,2.7961074]
[1766616211656,0.66,123.32,123.29,3.2261074]
[1766616211977,0.66,123.32,123.29,11.33700527]
[1766616212373,112.00734641,123.35,123.3,2.7961074]
[1766616212580,0.66,123.34,123.3,3.2261074]
[1766616212884,0.66,123.34,123.31,2.7961074]
[1766616213680,0.66,123.34,123.3,0.43]
[1766616213981,0.66,123.34,123.3,3.2261074]
[1766616214478,0.66,123.34,123.3,2.7961074]
[1766616215479,0.66,123.33,123.29,3.2261074]
[1766616215783,0.66,123.33,123.29,11.33706374]
[1766616216654,0.66,123.33,123.29,8.54095634]
[1766616216862,0.66,123.33,123.3,2.7961074]
[1766616217457,0.66,123.33,123.29,3.2261074]
[1766616218982,0.71,123.31,123.26,2.7961074]
[1766616219184,0.71,123.31,123.26,13.66378036]
[1766616220885,0.71,123.31,123.26,10.86767296]
[1766616221185,0.71,123.3,123.26,13.66378036]
[1766616222799,0.71,123.3,123.27,0.43]
[1766616223391,0.71,123.3,123.26,10.86767296]
[1766616223571,22.05255873,123.33,123.27,2.7961074]
[1766616223894,0.71,123.32,123.27,3.2261074]
[1766616225377,0.71,123.31,123.27,3.2261074]
[1766616225691,0.71,123.32,123.28,0.43]
[1766616225866,0.71,123.32,123.27,2.7961074]
[1766616226065,0.71,123.32,123.27,3.2261074]
[1766616226777,0.71,123.31,123.27,3.2261074]
[1766616227821,0.71,123.31,123.26,17.6161074]
[1766616228400,0.71,123.31,123.26,18.0461074]
[1766616230689,0.71,123.3,123.24,10.910007]
[1766616230915,0.71,123.28,123.24,28.05378036]
[1766616231274,0.71,123.28,123.24,28.48378036]
[1766616231584,0.71,123.28,123.24,18.0461074]
[1766616232873,0.71,123.28,123.24,3.2261074]
[1766616233072,0.71,123.28,123.24,2.7961074]
[1766616233280,0.71,123.28,123.23,23.36466159]
[1766616233667,0.71,123.28,123.24,2.7961074]
[1766616236307,23.07247773,123.3,123.24,2.7961074]
[1766616236806,2.7961074,123.3,123.23,18.0461074]
[1766616237107,129.15767296,123.3,123.23,0.69]
[1766616237286,2.7961074,123.29,123.24,0.69]
[1766616237483,10.9070653,123.29,123.24,0.69]
[1766616237795,8.1109579,123.29,123.25,0.69]
[1766616238399,8.8209579,123.29,123.25,0.69]
[1766616240299,8.1109579,123.29,123.23,2.7961074]
[1766616240507,0.71,123.27,123.24,0.69]
[1766616241505,0.71,123.29,123.24,0.69]
[1766616241687,0.71,123.29,123.26,0.69]
[1766616242008,103.9,123.3,123.27,0.69]
[1766616242210,0.71,123.31,123.28,3.4861074]
[1766616242708,0.71,123.31,123.28,0.69]
[1766616270515,0.71,123.31,123.28,8.80157715]
[1766616270715,0.71,123.31,123.28,8.11157715]
[1766616271012,0.71,123.31,123.29,0.71]
[1766616272534,14.82,123.33,123.29,8.11067849]
[1766616272729,14.82,123.33,123.3,0.71]
[1766616272932,0.72,123.32,123.3,0.71]
[1766616273437,11.15767296,123.32,123.3,0.71]
[1766616275716,0.72,123.32,123.3,0.71]
[1766616279416,0.72,123.34,123.3,8.82019298]
[1766616279626,0.72,123.34,123.31,0.66]
[1766616279828,0.72,123.34,123.31,8.76943108]
[1766616281157,0.72,123.34,123.31,8.10943108]
[1766616281364,0.72,123.34,123.32,0.66]
[1766616296265,0.72,123.34,123.3,0.66]
[1766616296433,0.72,123.33,123.29,77.96]
[1766616296627,0.72,123.32,123.29,0.66]
[1766616302056,0.72,123.31,123.29,0.66]
[1766616302556,0.72,123.31,123.28,15.46]
[1766616303142,8.82965262,123.31,123.28,15.46]
[1766616306379,0.72,123.31,123.28,15.46]
[1766616313953,0.72,123.31,123.28,14.8]
[1766616314156,0.72,123.31,123.28,15.52]
[1766616315376,1.78970145,123.33,123.29,0.72]
[1766616315377,10.60807773,123.33,123.29,0.72]
[1766616315574,0.71,123.32,123.29,0.72]
[1766616321578,0.71,123.32,123.28,15.52]
[1766616322683,0.71,123.32,123.28,14.8]
[1766616322873,0.71,123.32,123.29,0.72]
[1766616326289,0.71,123.32,123.27,25.72792818]
[1766616326468,0.71,123.32,123.28,0.72]
[1766616338001,0.71,123.32,123.29,0.7]
[1766616338290,0.69,123.33,123.29,0.7]
[1766616345908,3.48585189,123.33,123.3,0.7]
[1766616346202,2.79585189,123.33,123.3,0.7]
[1766616346407,0.69,123.32,123.3,0.7]
[1766616349308,0.69,123.32,123.29,14.82]
[1766616349483,0.69,123.32,123.29,15.52]
[1766616354717,0.69,123.32,123.29,18.31585189]
[1766616357011,0.69,123.32,123.29,15.52]
[1766616357218,0.69,123.32,123.29,18.31585189]
[1766616357391,19.23569065,123.34,123.3,0.7]
[1766616357718,0.69,123.33,123.3,0.7]
[1766616358415,0.69,123.33,123.29,18.31585189]
[1766616360816,0.69,123.33,123.29,17.61585189]
[1766616361151,19.23569065,123.34,123.3,0.7]
[1766616362315,0.69,123.33,123.29,14.82]
[1766616362617,0.69,123.33,123.29,15.52]
[1766616363641,0.69,123.33,123.3,0.7]
[1766616363929,18.54569065,123.34,123.3,0.7]
[1766616364090,0.69,123.33,123.3,0.7]
[1766616367026,18.54569065,123.34,123.3,0.7]
[1766616367203,19.23569065,123.34,123.3,0.7]
[1766616369431,0.66,123.33,123.3,0.7]
[1766616369631,0.66,123.33,123.29,15.5]
[1766616371835,0.66,123.33,123.29,14.82]
[1766616372022,0.66,123.33,123.3,0.68]
[1766616373802,0.66,123.33,123.29,14.82]
[1766616374007,0.66,123.33,123.29,15.5]
[1766616374208,0.66,123.33,123.3,0.68]
[1766616377131,0.66,123.33,123.29,15.5]
[1766616377323,0.66,123.33,123.3,0.68]
[1766616380129,0.66,123.33,123.3,8.79028798]
[1766616380315,0.66,123.33,123.31,0.68]
[1766616381113,0.66,123.33,123.3,0.68]
[1766616387145,10.43767296,123.34,123.3,0.68]
[1766616387348,11.09767296,123.34,123.31,0.68]
[1766616390839,0.66,123.35,123.31,0.68]
[1766616391035,0.66,123.35,123.32,0.68]
[1766616391938,0.66,123.36,123.32,0.68]
[1766616392447,0.66,123.36,123.33,0.68]
[1766616400759,0.66,123.36,123.32,14.8]
[1766616401061,0.66,123.36,123.33,0.71]
[1766616404373,0.68,123.35,123.33,0.71]
[1766616405282,0.68,123.35,123.32,14.8]
[1766616405283,0.68,123.35,123.32,0.71]
[1766616405779,8.78647009,123.36,123.32,0.71]
[1766616408461,0.68,123.35,123.32,0.71]
[1766616410385,8.78709067,123.35,123.32,0.71]
[1766616411384,8.10709067,123.35,123.32,0.71]
[1766616411790,0.68,123.34,123.32,0.71]
[1766616412970,0.68,123.33,123.3,2.49935889]